fUST/lending_fUST_20240813
["ID","MTS","AMOUNT","RATE_DAILY","PERIOD"]
[334774206,1723547440249,-153.0,0.00013494,2]
[334774208,1723547440258,-153.0,0.00013494,2]
[334774210,1723547440268,-153.0,0.00013494,2]
[334774212,1723547440277,-153.0,0.00013494,2]
[334774213,1723547440287,-153.0,0.00013494,2]
[334774215,1723547440297,-153.0,0.00013494,2]
[334774217,1723547440306,-153.0,0.00013494,2]
[334774219,1723547440317,-153.0,0.00013494,2]
[334774221,1723547440327,-153.0,0.00013494,2]
[334774223,1723547440338,-153.0,0.00013494,2]
[334774225,1723547440348,-153.0,0.00013494,2]
[334774227,1723547440358,-153.0,0.00013494,2]
[334774228,1723547440368,-153.0,0.00013494,2]
[334774230,1723547440380,-153.0,0.00013494,2]
[334774232,1723547440390,-153.0,0.00013494,2]
[334774234,1723547440399,-153.0,0.00013494,2]
[334774235,1723547440409,-153.0,0.00013494,2]
[334774236,1723547440419,-153.0,0.00013494,2]
[334774237,1723547440429,-153.0,0.00013494,2]
[334774238,1723547440439,-153.0,0.00013494,2]
[334774239,1723547440448,-153.0,0.00013494,2]
[334774240,1723547440459,-153.0,0.00013494,2]
[334774241,1723547440468,-153.0,0.00013494,2]
[334774242,1723547440479,-153.0,0.00013494,2]
[334774243,1723547440489,-153.0,0.00013494,2]
[334774244,1723547440498,-153.0,0.00013494,2]
[334774245,1723547440507,-153.0,0.00013494,2]
[334774246,1723547440517,-153.0,0.00013494,2]
[334774247,1723547440525,-153.0,0.00013494,2]
[334774248,1723547440540,-153.0,0.00013494,2]
[334774249,1723547440549,-153.0,0.00013494,2]
[334774250,1723547440559,-153.0,0.00013494,2]
[334774251,1723547440569,-153.0,0.00013494,2]
[334774252,1723547440578,-153.0,0.00013494,2]
[334774253,1723547440587,-153.0,0.00013494,2]
[334774254,1723547440598,-153.0,0.00013494,2]
[334774255,1723547440609,-153.0,0.00013494,2]
[334774256,1723547440619,-153.0,0.00013494,2]
[334774257,1723547440629,-161.0,0.00013494,2]
[334774258,1723547440639,-161.0,0.00013494,2]
[334774259,1723547440648,-161.0,0.00013494,2]
[334774260,1723547440657,-161.0,0.00013494,2]
[334774261,1723547440667,-161.0,0.00013494,2]
[334774262,1723547440676,-161.0,0.00013494,2]
[334774263,1723547440685,-161.0,0.00013494,2]
[334774264,1723547440694,-161.0,0.00013494,2]
[334774265,1723547440704,-161.0,0.00013494,2]
[334774266,1723547440713,-161.0,0.00013494,2]
[334774267,1723547440722,-161.0,0.00013494,2]
[334774268,1723547440733,-161.0,0.00013494,2]
[334774269,1723547440742,-161.0,0.00013494,2]
[334774270,1723547440751,-161.0,0.00013494,2]
[334774271,1723547440761,-161.0,0.00013494,2]
[334774272,1723547440771,-161.0,0.00013494,2]
[334774273,1723547440780,-161.0,0.00013494,2]
[334774274,1723547440789,-161.0,0.00013494,2]
[334774275,1723547440799,-161.0,0.00013494,2]
[334774276,1723547440809,-161.0,0.00013494,2]
[334774277,1723547440819,-161.0,0.00013494,2]
[334774278,1723547440829,-161.0,0.00013494,2]
[334774279,1723547440839,-161.0,0.00013494,2]
[334774280,1723547440849,-161.0,0.00013494,2]
[334774281,1723547440859,-161.0,0.00013494,2]
[334774282,1723547440868,-161.0,0.00013494,2]
[334774283,1723547440877,-161.0,0.00013494,2]
[334774284,1723547440887,-161.0,0.00013494,2]
[334774285,1723547440896,-161.0,0.00013494,2]
[334774286,1723547440906,-161.0,0.00013494,2]
[334774287,1723547440915,-161.0,0.00013494,2]
[334774288,1723547440925,-161.0,0.00013494,2]
[334774289,1723547440934,-161.0,0.00013494,2]
[334774290,1723547440944,-161.0,0.00013494,2]
[334774291,1723547440955,-161.0,0.00013494,2]
[334774292,1723547440965,-161.0,0.00013494,2]
[334774293,1723547440975,-161.0,0.00013494,2]
[334774294,1723547440986,-161.0,0.00013494,2]
[334774295,1723547440995,-161.0,0.00013494,2]
[334774296,1723547441004,-161.0,0.00013494,2]
[334774297,1723547441014,-161.0,0.00013494,2]
[334774298,1723547441024,-161.0,0.00013494,2]
[334774299,1723547441033,-161.0,0.00013494,2]
[334774300,1723547441043,-161.0,0.00013494,2]
[334774301,1723547441054,-161.0,0.00013494,2]
[334774302,1723547441063,-161.0,0.00013494,2]
[334774303,1723547441072,-161.0,0.00013494,2]
[334774304,1723547441082,-161.0,0.00013494,2]
[334774305,1723547441093,-161.0,0.00013494,2]
[334774306,1723547441103,-161.0,0.00013494,2]
[334774307,1723547441112,-161.0,0.00013494,2]
[334774308,1723547441122,-161.0,0.00013494,2]
[334774309,1723547441132,-161.0,0.00013494,2]
[334774310,1723547441141,-161.0,0.00013494,2]
[334774311,1723547441151,-161.0,0.00013494,2]
[334774312,1723547441161,-161.0,0.00013494,2]
[334774313,1723547441170,-161.0,0.00013494,2]
[334774314,1723547441179,-161.0,0.00013494,2]
[334774315,1723547441189,-161.0,0.00013494,2]
[334774316,1723547441199,-161.0,0.00013494,2]
[334774317,1723547441209,-161.0,0.00013494,2]
[334774318,1723547441218,-161.0,0.00013494,2]
[334774319,1723547441229,-161.0,0.00013494,2]
[334774320,1723547441239,-161.0,0.00013494,2]
[334774321,1723547441249,-161.0,0.00013494,2]
[334774322,1723547441259,-161.0,0.00013494,2]
[334774323,1723547441268,-161.0,0.00013494,2]
[334774324,1723547441277,-161.0,0.00013494,2]
[334774325,1723547441287,-161.0,0.00013494,2]
[334774326,1723547441296,-161.0,0.00013494,2]
[334774327,1723547441305,-161.0,0.00013494,2]
[334774328,1723547441315,-161.0,0.00013494,2]
[334774329,1723547441324,-161.0,0.00013494,2]
[334774330,1723547441334,-161.0,0.00013494,2]
[334774331,1723547441344,-161.0,0.00013494,2]
[334774332,1723547441355,-161.0,0.00013494,2]
[334774333,1723547441364,-161.0,0.00013494,2]
[334774334,1723547441374,-161.0,0.00013494,2]
[334774335,1723547441385,-161.0,0.00013494,2]
[334774336,1723547441396,-161.0,0.00013494,2]
[334774337,1723547441406,-161.0,0.00013494,2]
[334774338,1723547441415,-161.0,0.00013494,2]
[334774339,1723547441426,-161.0,0.00013494,2]
[334774340,1723547441436,-161.0,0.00013494,2]
[334774341,1723547441447,-161.0,0.00013494,2]
[334774342,1723547441458,-161.0,0.00013494,2]
[334774343,1723547441472,-161.0,0.00013494,2]
[334774344,1723547441485,-161.0,0.00013494,2]
[334774345,1723547441494,-161.0,0.00013494,2]
[334774346,1723547441504,-161.0,0.00013494,2]
[334774347,1723547441513,-161.0,0.00013494,2]
[334774348,1723547441523,-161.0,0.00013494,2]
[334774349,1723547441532,-161.0,0.00013494,2]
[334774350,1723547441541,-161.0,0.00013494,2]
[334774351,1723547441550,-161.0,0.00013494,2]
[334774352,1723547441561,-161.0,0.00013494,2]
[334774353,1723547441570,-161.0,0.00013494,2]
[334774354,1723547441579,-150.0,0.00013508,2]
[334774355,1723547441589,-150.892,0.00013508,2]
[334774356,1723547441598,-150.0,0.00013508,2]
[334774357,1723547441609,-508.0,0.00013508,2]
[334774358,1723547441619,-152.95542677,0.00013519,2]
[334774359,1723547441629,-152.95542677,0.00013559,2]
[334774360,1723547441638,-90990.4292173,0.0001357,2]
[334774361,1723547441647,-161.654081,0.0001357,2]
[334774362,1723547441657,-161.654081,0.0001357,2]
[334774363,1723547441666,-575.467611,0.0001357,2]
[334774364,1723547441676,-575.467611,0.0001357,2]
[334774365,1723547441685,-151.0,0.0001357,2]
[334774366,1723547441694,-40481.67387811,0.00013576,2]
[334774367,1723547441704,-161.654081,0.00013576,2]
[334774368,1723547441713,-161.654081,0.00013576,2]
[334774369,1723547441722,-575.467611,0.00013576,2]
[334774370,1723547441735,-575.467611,0.00013576,2]
[334774371,1723547441744,-181980.858435,0.00013576,2]
[334774372,1723547441754,-152.350723,0.0001358,2]
[334774373,1723547441763,-152.972169,0.0001358,2]
[334774374,1723547441887,-151.0,0.0001358,2]
[334774375,1723547441897,-151.0,0.0001358,2]
[334774376,1723547441907,-156.731533,0.0001358,2]
[334774377,1723547441916,-151.0,0.0001358,2]
[334774378,1723547441926,-640.682161,0.0001358,2]
[334774379,1723547441935,-640.682161,0.0001358,2]
[334774380,1723547441944,-151.0,0.0001358,2]
[334774381,1723547441954,-502.172012,0.0001358,2]
[334774382,1723547441963,-502.172012,0.0001358,2]
[334774383,1723547441973,-153.324551,0.0001358,2]
[334774384,1723547441984,-151.0,0.0001358,2]
[334774385,1723547441994,-151.917812,0.0001358,2]
[334774386,1723547442003,-473.199744,0.0001358,2]
[334774387,1723547442012,-473.199744,0.0001358,2]
[334774388,1723547442022,-786.688587,0.0001358,2]
[334774389,1723547442032,-786.688587,0.0001358,2]
[334774390,1723547442041,-330.009889,0.0001358,2]
[334774391,1723547442053,-330.009889,0.0001358,2]
[334774392,1723547442063,-151.0,0.0001358,2]
[334774393,1723547442073,-249.179601,0.0001358,2]
[334774394,1723547442083,-249.179601,0.0001358,2]
[334774395,1723547442093,-151.0,0.0001358,2]
[334774396,1723547442102,-151.0,0.0001358,2]
[334774397,1723547442112,-1167.297545,0.0001358,2]
[334774398,1723547442121,-1167.297545,0.0001358,2]
[334774399,1723547442130,-151.0,0.0001358,2]
[334774400,1723547442140,-151.0,0.0001358,2]
[334774401,1723547442149,-190.778351,0.0001358,2]
[334774402,1723547442159,-151.0,0.0001358,2]
[334774403,1723547442168,-511.955389,0.0001358,2]
[334774404,1723547442178,-190.778351,0.0001358,2]
[334774405,1723547442187,-151.0,0.0001358,2]
[334774406,1723547442196,-511.955389,0.0001358,2]
[334774407,1723547442206,-151.0,0.0001358,2]
[334774408,1723547442215,-190.649341,0.0001358,2]
[334774409,1723547442225,-190.649341,0.0001358,2]
[334774410,1723547442236,-161.654081,0.0001358,2]
[334774411,1723547442245,-161.654081,0.0001358,2]
[334774412,1723547442254,-575.467611,0.0001358,2]
[334774413,1723547442263,-575.467611,0.0001358,2]
[334774414,1723547442272,-90990.4292173,0.0001358,2]
[334774415,1723547442282,-99228.7793889,0.00013586,2]
[334774416,1723547442291,-151.0,0.00013586,2]
[334774417,1723547442300,-151.0,0.00013586,2]
[334774418,1723547442309,-640.682161,0.00013586,2]
[334774419,1723547442318,-640.682161,0.00013586,2]
[334774420,1723547442327,-151.0,0.00013586,2]
[334774421,1723547442336,-502.172012,0.00013586,2]
[334774422,1723547442345,-502.172012,0.00013586,2]
[334774423,1723547442355,-151.0,0.00013586,2]
[334774424,1723547442364,-473.199744,0.00013586,2]
[334774425,1723547442373,-473.199744,0.00013586,2]
[334774426,1723547442387,-786.688587,0.00013586,2]
[334774427,1723547442396,-786.688587,0.00013586,2]
[334774428,1723547442406,-330.009889,0.00013586,2]
[334774429,1723547442415,-330.009889,0.00013586,2]
[334774430,1723547442425,-288.365896,0.00013586,2]
[334774431,1723547442434,-249.179601,0.00013586,2]
[334774432,1723547442444,-249.179601,0.00013586,2]
[334774433,1723547442453,-151.0,0.00013586,2]
[334774434,1723547442462,-1167.297545,0.00013586,2]
[334774435,1723547442473,-1167.297545,0.00013586,2]
[334774436,1723547442484,-151.0,0.00013586,2]
[334774437,1723547442494,-151.0,0.00013586,2]
[334774438,1723547442503,-190.778351,0.00013586,2]
[334774439,1723547442513,-511.955389,0.00013586,2]
[334774440,1723547442522,-151.0,0.00013586,2]
[334774441,1723547442531,-190.778351,0.00013586,2]
[334774442,1723547442541,-511.955389,0.00013586,2]
[334774443,1723547442550,-190.649341,0.00013586,2]
[334774444,1723547442560,-190.649341,0.00013586,2]
[334774445,1723547442569,-161.654081,0.00013586,2]
[334774447,1723547442579,-161.654081,0.00013586,2]
[334774449,1723547442588,-575.467611,0.00013586,2]
[334774451,1723547442597,-575.467611,0.00013586,2]
[334774453,1723547442606,-151.0,0.0001359,2]
[334774454,1723547442615,-173.907888,0.0001359,2]
[334774455,1723547442624,-151.0,0.0001359,2]
[334774456,1723547442633,-169.134639,0.0001359,2]
[334774457,1723547442642,-640.682161,0.0001359,2]
[334774458,1723547442651,-640.682161,0.0001359,2]
[334774459,1723547442660,-151.0,0.0001359,2]
[334774460,1723547442670,-502.172012,0.0001359,2]
[334774461,1723547442679,-502.172012,0.0001359,2]
[334774462,1723547442688,-151.0,0.0001359,2]
[334774463,1723547442697,-473.199744,0.0001359,2]
[334774464,1723547442706,-473.199744,0.0001359,2]
[334774465,1723547442715,-786.688587,0.0001359,2]
[334774466,1723547442724,-786.688587,0.0001359,2]
[334774467,1723547442736,-330.009889,0.0001359,2]
[334774468,1723547442746,-330.009889,0.0001359,2]
[334774469,1723547442756,-249.179601,0.0001359,2]
[334774470,1723547442766,-249.179601,0.0001359,2]
[334774471,1723547442776,-151.0,0.0001359,2]
[334774473,1723547442786,-1167.297545,0.0001359,2]
[334774475,1723547442796,-1167.297545,0.0001359,2]
[334774477,1723547442805,-151.0,0.0001359,2]
[334774481,1723547442817,-156.822198,0.0001359,2]
[334774484,1723547442826,-90990.4292173,0.0001359,2]
[334774487,1723547442836,-190.778351,0.0001359,2]
[334774490,1723547442845,-511.955389,0.0001359,2]
[334774493,1723547442855,-151.0,0.0001359,2]
[334774495,1723547442865,-190.778351,0.0001359,2]
[334774497,1723547442875,-511.955389,0.0001359,2]
[334774499,1723547442884,-151.0,0.0001359,2]
[334774501,1723547442894,-190.649341,0.0001359,2]
[334774503,1723547442903,-190.649341,0.0001359,2]
[334774505,1723547442912,-161.654081,0.0001359,2]
[334774506,1723547442922,-161.654081,0.0001359,2]
[334774507,1723547442932,-575.467611,0.0001359,2]
[334774508,1723547442942,-575.467611,0.0001359,2]
[334774509,1723547442953,-1706.2452108,0.00013597,2]
[334774510,1723547442963,-151.0,0.00013598,2]
[334774511,1723547442974,-152.95542677,0.00013598,2]
[334774512,1723547442985,-9960.47482463,0.00013598,2]
[334774513,1723547442995,-71330.76531968,0.000136,2]
[334774514,1723547443006,-260.848541,0.000136,2]
[334774515,1723547443016,-151.0,0.000136,2]
[334774516,1723547443026,-151.0,0.000136,2]
[334774517,1723547443036,-151.0,0.000136,2]
[334774518,1723547443046,-287.710473,0.000136,2]
[334774519,1723547443056,-287.710473,0.000136,2]
[334774520,1723547443066,-151.0,0.000136,2]
[334774521,1723547443076,-230.186481,0.000136,2]
[334774522,1723547443086,-151.555561,0.000136,2]
[334774523,1723547443097,-151.0,0.000136,2]
[334774524,1723547443107,-151.0,0.000136,2]
[334774525,1723547443118,-640.682161,0.000136,2]
[334774526,1723547443128,-640.682161,0.000136,2]
[334774527,1723547443139,-160.556015,0.000136,2]
[334774528,1723547443150,-502.172012,0.000136,2]
[334774529,1723547443160,-502.172012,0.000136,2]
[334774530,1723547443170,-151.0,0.000136,2]
[334774531,1723547443179,-473.199744,0.000136,2]
[334774532,1723547443189,-473.199744,0.000136,2]
[334774533,1723547443204,-786.688587,0.000136,2]
[334774534,1723547443217,-786.688587,0.000136,2]
[334774535,1723547443230,-330.009889,0.000136,2]
[334774536,1723547443242,-330.009889,0.000136,2]
[334774537,1723547443252,-249.179601,0.000136,2]
[334774538,1723547443266,-249.179601,0.000136,2]
[334774539,1723547443279,-1167.297545,0.000136,2]
[334774540,1723547443292,-1167.297545,0.000136,2]
[334774541,1723547443305,-150.112233,0.000136,2]
[334774542,1723547443318,-251.766319,0.000136,2]
[334774543,1723547443332,-190.778351,0.000136,2]
[334774544,1723547443346,-511.955389,0.000136,2]
[334774545,1723547443360,-151.0,0.000136,2]
[334774546,1723547443375,-190.778351,0.000136,2]
[334774547,1723547443390,-511.955389,0.000136,2]
[334774548,1723547443405,-151.0,0.000136,2]
[334774549,1723547443418,-190.649341,0.000136,2]
[334774550,1723547443432,-190.649341,0.000136,2]
[334774551,1723547443443,-161.654081,0.000136,2]
[334774552,1723547443454,-161.654081,0.000136,2]
[334774553,1723547443467,-575.467611,0.000136,2]
[334774555,1723547443479,-575.467611,0.000136,2]
[334774557,1723547443492,-200.0,0.00013673,2]
[334774559,1723547443506,-200.0,0.00013673,2]
[334774560,1723547443519,-200.0,0.00013673,2]
[334774561,1723547443532,-200.0,0.00013673,2]
[334774562,1723547443553,-285.109516,0.00013678,2]
[334774563,1723547443581,-640.682161,0.00013678,2]
[334774564,1723547443614,-640.682161,0.00013678,2]
[334774565,1723547443646,-502.172012,0.00013678,2]
[334774566,1723547443677,-502.172012,0.00013678,2]
[334774567,1723547443708,-151.0,0.00013678,2]
[334774568,1723547443736,-473.199744,0.00013678,2]
[334774569,1723547443768,-473.199744,0.00013678,2]
[334774570,1723547443794,-786.688587,0.00013678,2]
[334774571,1723547443821,-786.688587,0.00013678,2]
[334774572,1723547443844,-330.009889,0.00013678,2]
[334774573,1723547443870,-330.009889,0.00013678,2]
[334774574,1723547443893,-249.179601,0.00013678,2]
[334774575,1723547443917,-249.179601,0.00013678,2]
[334774577,1723547443933,-1167.297545,0.00013678,2]
[334774579,1723547443949,-1167.297545,0.00013678,2]
[334774580,1723547443961,-190.778351,0.00013678,2]
[334774581,1723547443971,-511.955389,0.00013678,2]
[334774583,1723547443983,-190.778351,0.00013678,2]
[334774585,1723547443995,-511.955389,0.00013678,2]
[334774586,1723547444007,-151.0,0.00013678,2]
[334774587,1723547444018,-190.649341,0.00013678,2]
[334774588,1723547444030,-190.649341,0.00013678,2]
[334774589,1723547444042,-151.0,0.00013688,2]
[334774590,1723547444055,-151.0,0.00013688,2]
[334774591,1723547444067,-294.510599,0.00013688,2]
[334774592,1723547444081,-287.710473,0.00013688,2]
[334774593,1723547444095,-287.710473,0.00013688,2]
[334774594,1723547444107,-151.0,0.00013688,2]
[334774595,1723547444120,-151.0,0.00013688,2]
[334774596,1723547444132,-640.682161,0.00013688,2]
[334774597,1723547444145,-640.682161,0.00013688,2]
[334774598,1723547444158,-502.172012,0.00013688,2]
[334774599,1723547444170,-502.172012,0.00013688,2]
[334774600,1723547444181,-151.0,0.00013688,2]
[334774601,1723547444194,-473.199744,0.00013688,2]
[334774602,1723547444207,-473.199744,0.00013688,2]
[334774603,1723547444221,-786.688587,0.00013688,2]
[334774604,1723547444236,-786.688587,0.00013688,2]
[334774605,1723547444253,-330.009889,0.00013688,2]
[334774606,1723547444265,-330.009889,0.00013688,2]
[334774607,1723547444278,-249.179601,0.00013688,2]
[334774608,1723547444292,-249.179601,0.00013688,2]
[334774609,1723547444303,-1167.297545,0.00013688,2]
[334774610,1723547444314,-1167.297545,0.00013688,2]
[334774611,1723547444326,-190.778351,0.00013688,2]
[334774612,1723547444337,-511.955389,0.00013688,2]
[334774613,1723547444349,-190.778351,0.00013688,2]
[334774614,1723547444361,-511.955389,0.00013688,2]
[334774615,1723547444374,-159.410099,0.00013688,2]
[334774616,1723547444390,-190.649341,0.00013688,2]
[334774617,1723547444403,-190.649341,0.00013688,2]
[334774618,1723547444416,-161.654081,0.00013688,2]
[334774619,1723547444428,-161.654081,0.00013688,2]
[334774620,1723547444439,-575.467611,0.00013688,2]
[334774621,1723547444450,-575.467611,0.00013688,2]
[334774622,1723547444462,-203.50934828,0.00013697,2]
[334774623,1723547444474,-5988.76086081,0.00013697,2]
[334774624,1723547444486,-209.78463677,0.00013698,2]
[334774625,1723547444499,-500.0,0.00013698,2]
[334774626,1723547444510,-500.0,0.00013698,2]
[334774627,1723547444521,-485.08655144,0.00013698,2]
[334774628,1723547444533,-500.0,0.00013698,2]
[334774629,1723547444545,-500.0,0.00013698,2]
[334774630,1723547444557,-230.08008168,0.00013698,2]
[334774631,1723547444568,-500.0,0.00013698,2]
[334774632,1723547444580,-571.7495772,0.00013698,2]
[334774633,1723547444592,-388.19965429,0.00013698,2]
[334774634,1723547444604,-500.0,0.00013698,2]
[334774635,1723547444616,-500.0,0.00013698,2]
[334774636,1723547444627,-500.0,0.00013698,2]
[334774637,1723547444639,-576.86819692,0.00013698,2]
[334774638,1723547444650,-500.0,0.00013698,2]
[334774639,1723547444661,-587.71194581,0.00013698,2]
[334774640,1723547444675,-500.0,0.00013698,2]
[334774641,1723547444686,-500.0,0.00013698,2]
[334774642,1723547444698,-243.18636395,0.00013698,2]
[334774643,1723547444711,-500.0,0.00013698,2]
[334774644,1723547444723,-500.0,0.00013698,2]
[334774645,1723547444735,-501.73655311,0.00013698,2]
[334774646,1723547444747,-262.96385452,0.00013698,2]
[334774647,1723547444759,-221.82352259,0.00013698,2]
[334774648,1723547444770,-500.0,0.00013698,2]
[334774649,1723547444782,-500.0,0.00013698,2]
[334774650,1723547444793,-500.0,0.00013698,2]
[334774651,1723547444804,-500.0,0.00013698,2]
[334774652,1723547444816,-500.0,0.00013698,2]
[334774653,1723547444827,-501.88324944,0.00013698,2]
[334774654,1723547444838,-500.0,0.00013698,2]
[334774655,1723547444849,-500.0,0.00013698,2]
[334774656,1723547444861,-564.69314424,0.00013698,2]
[334774657,1723547444873,-200.0,0.00013698,2]
[334774658,1723547444885,-500.0,0.00013698,2]
[334774659,1723547444896,-500.0,0.00013698,2]
[334774660,1723547444908,-300.0,0.00013698,2]
[334774661,1723547444919,-500.0,0.00013698,2]
[334774662,1723547444930,-500.0,0.00013698,2]
[334774663,1723547444942,-500.0,0.00013698,2]
[334774664,1723547444954,-186.81211809,0.00013698,2]
[334774665,1723547444965,-500.0,0.00013698,2]
[334774666,1723547444976,-157.2737572,0.00013698,2]
[334774667,1723547444989,-1178.14169129,0.00013698,2]
[334774668,1723547445000,-500.0,0.00013698,2]
[334774669,1723547445012,-740.77,0.00013698,2]
[334774670,1723547445203,-506.59051584,0.00013698,2]
[334774671,1723547445231,-510.6312989,0.00013698,2]
[334774672,1723547445246,-506.45694896,0.00013698,2]
[334774673,1723547445256,-502.05488417,0.00013698,2]
[334774674,1723547445265,-500.0,0.00013698,2]
[334774675,1723547445275,-500.0,0.00013698,2]
[334774676,1723547445284,-500.0,0.00013698,2]
[334774677,1723547445293,-503.76411208,0.00013698,2]
[334774678,1723547445303,-503.91010508,0.00013698,2]
[334774679,1723547445312,-500.0,0.00013698,2]
[334774680,1723547445322,-500.0,0.00013698,2]
[334774681,1723547445332,-500.0,0.00013698,2]
[334774682,1723547445342,-509.08617267,0.00013698,2]
[334774683,1723547445351,-500.0,0.00013698,2]
[334774684,1723547445361,-500.0,0.00013698,2]
[334774685,1723547445371,-500.0,0.00013698,2]
[334774686,1723547445384,-500.0,0.00013698,2]
[334774687,1723547445393,-500.0,0.00013698,2]
[334774688,1723547445403,-500.0,0.00013698,2]
[334774689,1723547445412,-500.0,0.00013698,2]
[334774690,1723547445421,-500.0,0.00013698,2]
[334774691,1723547445431,-505.62042349,0.00013698,2]
[334774692,1723547445440,-504.12316771,0.00013698,2]
[334774693,1723547445450,-470.61676239,0.00013698,2]
[334774694,1723547445461,-500.0,0.00013698,2]
[334774695,1723547445471,-500.0,0.00013698,2]
[334774696,1723547445480,-500.0,0.00013698,2]
[334774697,1723547445491,-305.34488994,0.00013698,2]
[334774698,1723547445501,-500.0,0.00013698,2]
[334774699,1723547445511,-500.0,0.00013698,2]
[334774700,1723547445520,-500.0,0.00013698,2]
[334774701,1723547445530,-500.0,0.00013698,2]
[334774702,1723547445541,-500.0,0.00013698,2]
[334774703,1723547445551,-500.0,0.00013698,2]
[334774704,1723547445560,-506.14452016,0.00013698,2]
[334774705,1723547445569,-500.0,0.00013698,2]
[334774706,1723547445579,-500.0,0.00013698,2]
[334774707,1723547445588,-500.0,0.00013698,2]
[334774708,1723547445599,-507.02549008,0.00013698,2]
[334774709,1723547445608,-500.0,0.00013698,2]
[334774710,1723547445617,-500.0,0.00013698,2]
[334774711,1723547445626,-500.0,0.00013698,2]
[334774712,1723547445636,-500.0,0.00013698,2]
[334774714,1723547445645,-500.0,0.00013698,2]
[334774716,1723547445654,-500.0,0.00013698,2]
[334774717,1723547445664,-500.0,0.00013698,2]
[334774718,1723547445675,-500.0,0.00013698,2]
[334774719,1723547445686,-500.0,0.00013698,2]
[334774720,1723547445696,-500.0,0.00013698,2]
[334774721,1723547445706,-500.0,0.00013698,2]
[334774722,1723547445715,-500.0,0.00013698,2]
[334774723,1723547445726,-500.0,0.00013698,2]
[334774725,1723547445738,-500.0,0.00013698,2]
[334774726,1723547445754,-500.0,0.00013698,2]
[334774727,1723547445763,-500.0,0.00013698,2]
[334774728,1723547445772,-500.0,0.00013698,2]
[334774729,1723547445781,-500.0,0.00013698,2]
[334774730,1723547445790,-500.0,0.00013698,2]
[334774731,1723547445799,-353.68,0.00013698,2]
[334774732,1723547445808,-221.25196166,0.00013698,2]
[334774733,1723547445817,-500.0,0.00013698,2]
[334774734,1723547445826,-501.21147258,0.00013698,2]
[334774735,1723547445835,-500.0,0.00013698,2]
[334774736,1723547445844,-500.83788809,0.00013698,2]
[334774737,1723547445853,-518.39715278,0.00013698,2]
[334774738,1723547445862,-500.0,0.00013698,2]
[334774739,1723547445871,-270.26495792,0.00013698,2]
[334774740,1723547445881,-500.0,0.00013698,2]
[334774741,1723547445891,-500.0,0.00013698,2]
[334774742,1723547445900,-556.74602454,0.00013698,2]
[334774743,1723547445909,-500.0,0.00013698,2]
[334774744,1723547445919,-500.0,0.00013698,2]
[334774745,1723547445928,-500.0,0.00013698,2]
[334774746,1723547445938,-500.0,0.00013698,2]
[334774747,1723547445948,-500.0,0.00013698,2]
[334774748,1723547445958,-500.0,0.00013698,2]
[334774749,1723547445968,-631.47498351,0.00013698,2]
[334774750,1723547445977,-510.28057163,0.00013698,2]
[334774751,1723547445989,-500.0,0.00013698,2]
[334774752,1723547445998,-500.0,0.00013698,2]